Cogmind - Beta 15 @@@ ROGUE MODE // 2025.10.15 @ 23:36:17 Player: mgobin-777 Result: Self-destructed Performance ------------- Evolutions (0) 0 Regions Visited (3) 600 Robots Destroyed (2) 10 Value Destroyed (80) 80 Prototype IDs (7) 140 Alien Tech Used (0) 0 Bonus (300) 300 TOTAL SCORE: 1130 Bonus ------- Registered with UFD 300 Cogmind --------- Core Integrity 102/250 Matter 228/300 Energy 150/150 System Corruption 2% Temperature Cool (12) Movement Core (400) Ox7 Location -9/Scraptown Parts ------- > --- POWER (1) -------- Light Angular Momentum Engine > --- PROPULSION (2) --- (None) > --- UTILITY (2) ------ Small Storage Unit > --- WEAPON (2) ------- Subdweller Laser Subdweller Laser > --- INVENTORY (8) ---- Deuterium Engine Improved Heat Sink Advanced Targeting Computer ECM Suite Core Shielding Rocket Launcher Junk Cannon (1) Peak State ------------ > --- POWER ------------ Light Angular Momentum Engine > --- PROPULSION ------- Wheel > --- UTILITY ---------- Small Storage Unit Experimental Sensor Array > --- WEAPON ----------- Junk Cannon > --- INVENTORY -------- Deuterium Engine Improved Heat Sink Advanced Targeting Computer ECM Suite Core Shielding Subdweller Laser Rocket Launcher Maul [Rating: 29] Favorites ----------- Power Light Angular Momentum Engine Engine Light Angular Momentum Engine Propulsion Wheel Wheel Wheel Utility Small Storage Unit Device Disposable Heat Sink Storage Small Storage Unit Weapon Subdweller Laser Energy Gun Subdweller Laser Ballistic Gun Subdweller Machine Gun Special Weapon Junk Cannon Build | -11 -10 -10 -9 ------- Run | Yrd Mat Sub Scr Slots Evolved . | . . . . Power . | . . . . Propulsion . | . . . . Utility . | . . . . Weapon . | . . . . Parts Attached 18 | 5 3 5 5 Power 3 | 1 . 1 1 Engine 3 | 1 . 1 1 Core . | . . . . Reactor . | . . . . Propulsion 3 | 2 . 1 . Treads . | . . . . Leg . | . . . . Wheel 3 | 2 . 1 . Hover . | . . . . Flight . | . . . . Utility 6 | . 3 1 2 Device 5 | . 2 1 2 Storage 1 | . 1 . . Processor . | . . . . Hackware . | . . . . Protection . | . . . . Artifact . | . . . . Weapon 6 | 2 . 2 2 Energy Gun 3 | 1 . 1 1 Energy Cannon . | . . . . Ballistic Gun 2 | 1 . 1 . Ballistic Cannon . | . . . . Launcher . | . . . . Special Weapon 1 | . . . 1 Impact Weapon . | . . . . Slashing Weapon . | . . . . Piercing Weapon . | . . . . Special Melee Weapon . | . . . . Unidentified Prototypes 1 | . . . 1 Parts Lost 2 | . . . 2 Power . | . . . . Propulsion 1 | . . . 1 Utility 1 | . . . 1 Weapon . | . . . . Highest Loss Streak 2 | . . . 2 To Critical Strikes . | . . . . Average Backups 5 | . . 2 7 Power . | . . . . Propulsion . | . . . . Utility 3 | . . 2 3 Weapon 1 | . . . 2 Tool/Special . | . . . . Unused Backups 5 | . . . 5 Power 1 | . . . 1 Propulsion . | . . . . Utility 2 | . . . 2 Weapon 2 | . . . 2 Tool/Special . | . . . . Average Slot Usage (%) 88 | . 94 100 85 Engine 14 | . 14 14 14 Wheel 17 | . 28 28 14 Device 13 | . 9 14 14 Storage 13 | . 13 14 14 Energy Gun 15 | . 14 14 15 Ballistic Gun 12 | . 14 14 12 Peak Build Rating 29 | 5 7 13 29 Average Rating 13 | 3 6 10 15 On Entrance 6 | . 5 7 13 Naked Turns . | . . . . Heaviest Build 23 | 9 16 19 23 Greatest Support 30 | 26 26 30 30 Greatest Overweight (x) 7 | . . . 7 Average Overweight (x) 1 | . . . 1 Largest Inventory Capacity 8 | 5 8 8 8 Average Capacity 7 | 5 7 8 8 Most Carried 8 | 2 1 5 8 Average Carried 5 | . . 2 7 Final Capacity 8 | 5 8 8 8 Final Carried 8 | 1 1 5 8 Class Distribution -------------------- 70% | Scavenger-Mutant 29% | Mutant Dominant Class ---------------- Mutant | -10/Materials Mutant | -10/Subcaves Scavenger-Mutant | -9/Scraptown Resources | -11 -10 -10 -9 ----------- Run | Yrd Mat Sub Scr Matter Collected 384 | 116 . 238 30 Remotely . | . . . . Salvage Created 91 | . . 91 . Parts 7 | . . 7 . Haulers Intercepted . | . . . . Recyclers Shooed . | . . . . Parts Field Recycled . | . . . . Retrieved Matter . | . . . . Parts Self-Destructed 4 | . . 4 . Prevented . | . . . . Kills | -11 -10 -10 -9 ------- Run | Yrd Mat Sub Scr Combat Hostiles Destroyed 2 | . . 2 . Guns 2 | . . 2 . Classes Destroyed 1 | . . 1 . Subdweller 2 | . . 2 . Best Kill Streak 1 | . . 1 . Combat Bots Only 1 | . . 1 . Max Kills in Single Turn 1 | . . 1 . Gunslinging . | . . . . Exploded . | . . . . Melee . | . . . . Uniques/NPCs Destroyed . | . . . . Combat | -11 -10 -10 -9 -------- Run | Yrd Mat Sub Scr Hostile Shots Fired 31 | . . 11 20 Missed 9 | . . 4 5 Hits 22 | . . 7 15 Projectile 22 | . . 7 15 Critical Strikes 3 | . . 1 2 Damage Taken 418 | . 9 147 262 Core 148 | . 9 40 99 Absorbed by Shields . | . . . . Core Remaining (%) 100 | 100 . . . Volleys Fired 11 | . . 11 . Largest 2 | . . 2 . Hottest 90 | . . 90 . Shots Fired 23 | . . 22 1 Gun 23 | . . 22 1 Cannon . | . . . . Launcher . | . . . . Special . | . . . . Kinetic 11 | . . 11 . Thermal 12 | . . 11 1 Explosive . | . . . . Electromagnetic . | . . . . Robot Hit Streak 5 | . . 5 3 Robot Miss Streak 2 | . . 2 . Penetration Max . | . . . . Secondary Targets . | . . . . Shots Hit Robots 16 | . . 15 1 Core Hits 5 | . . 5 . Critical Kills . | . . . . Critical Parts Destroyed . | . . . . Critical Strikes . | . . . . Melee Attacks . | . . . . Impact . | . . . . Slashing . | . . . . Piercing . | . . . . Sneak Attacks . | . . . . Combat Hostiles . | . . . . Follow-up Attacks . | . . . . Damage Inflicted 306 | . 19 287 . Guns 287 | . . 287 . Cannons . | . . . . Explosions . | . . . . Melee . | . . . . Ramming 19 | . 19 . . Kinetic 134 | . . 134 . Thermal 153 | . . 153 . Explosive . | . . . . Electromagnetic . | . . . . Impact . | . . . . Slashing . | . . . . Piercing . | . . . . Highest Corruption 2 | . 2 2 2 Average Corruption 2 | . 2 2 2 Corruption Purged . | . . . . Corruption Blocked . | . . . . Effects 27 | . 2 7 18 Message Errors 4 | . . . 4 Matter Fused 8 | . . 2 6 Heat Flow Errors 6 | . . 2 4 Energy Discharges 2 | . . . 2 Data Loss (minor) 5 | . 2 2 1 Data Loss (major) 1 | . . 1 . Misfires 1 | . . . 1 Overload Shots . | . . . . Overflow Damage . | . . . . Projectiles . | . . . . Explosions . | . . . . Melee . | . . . . Knockbacks . | . . . . Impact . | . . . . Kinetic . | . . . . Secondary . | . . . . Self-Inflicted Damage 9 | . 9 . . Shots . | . . . . Rammed 2 | . 2 . . Targets Rammed 2 | . 2 . . Kicked . | . . . . Crushed . | . . . . Highest Temperature 503 | . . 503 207 Average Temperature 147 | . . 243 87 Received Heat Transfer 319 | . . 295 24 Effects 4 | . . 4 . Shutdowns 2 | . . 2 . Energy Bleed 2 | . . 2 . Siege Activations . | . . . . Martial Activations . | . . . . Shielding Activations . | . . . . Robots Disrupted . | . . . . Combat Hostiles . | . . . . Robots Corrupted . | . . . . Combat Hostiles . | . . . . Parts Fried . | . . . . Impact Corruptions . | . . . . Robots Melted . | . . . . Combat Hostiles . | . . . . Parts Melted . | . . . . Heat Transferred 212 | . . 212 . Parts Sabotaged . | . . . . Parts Stolen . | . . . . Parts Stripped . | . . . . Power Chain Reactions . | . . . . Alert | -11 -10 -10 -9 ------- Run | Yrd Mat Sub Scr Maximum Alert Level . | . . . . Low Security (%) 100 | 100 100 . . Level 1 . | . . . . Level 2 . | . . . . Level 3 . | . . . . Level 4 . | . . . . Level 5 . | . . . . High Security . | . . . . Max Security . | . . . . Peak Influence . | . . . . Initial . | . . . . Average . | . . . . Influence Increases . | . . . . Influence Decreases . | . . . . Squads Dispatched . | . . . . Investigation . | . . . . Extermination . | . . . . Reinforcement . | . . . . Assault . | . . . . Garrison . | . . . . Intercept . | . . . . Searches Triggered . | . . . . Construction Impeded . | . . . . Haulers Reinforced . | . . . . Active Scanning Responses . | . . . . Cargo Convoy Interrupts . | . . . . Stealth | -11 -10 -10 -9 --------- Run | Yrd Mat Sub Scr Distress Signals . | . . . . Communications Jammed . | . . . . Distress Signals . | . . . . Times Spotted 22 | . 1 13 8 Peak Tracking Total 10 | . 1 6 10 Tactical Retreats . | . . . . Traps | -11 -10 -10 -9 ------- Run | Yrd Mat Sub Scr Traps Triggered . | . . . . Indirectly . | . . . . Trap Hack Attempts . | . . . . Triggered . | . . . . Disarmed . | . . . . Reprogrammed . | . . . . Reused . | . . . . Traps Extracted . | . . . . Installed . | . . . . Triggered . | . . . . Machines | -11 -10 -10 -9 ---------- Run | Yrd Mat Sub Scr Machines Disabled . | . . . . Max in Single Turn . | . . . . Machines Repaired . | . . . . Machines Dismantled . | . . . . Machines Sabotaged . | . . . . Overloaded Fab Kills . | . . . . Hacking | -11 -10 -10 -9 --------- Run | Yrd Mat Sub Scr Machines Accessed 3 | . 1 . 2 Terminals 1 | . 1 . . Fabricators . | . . . . Repair Stations . | . . . . Recycling Units . | . . . . Scanalyzers . | . . . . Garrison Access . | . . . . Total Hacks 23 | . 4 . 19 Successful 20 | . 1 . 19 Failed 3 | . 3 . . Catastrophic . | . . . . Database Lockouts . | . . . . Manual . | . . . . Terminals 4 | . 4 . . Fabricators . | . . . . Repair Stations . | . . . . Recycling Units . | . . . . Scanalyzers . | . . . . Garrison Access . | . . . . Terminal Hacks 20 | . 1 . 19 Record 19 | . . . 19 Hauler Manifests 1 | . 1 . . Fabricator Hacks . | . . . . Repair Station Hacks . | . . . . Recycling Unit Hacks . | . . . . Scanalyzer . | . . . . Garrison Access Hacks . | . . . . Unauthorized Hacks . | . . . . Terminals . | . . . . Fabricators . | . . . . Repair Stations . | . . . . Recycling Units . | . . . . Scanalyzers . | . . . . Garrison Access . | . . . . Data Cores Recovered . | . . . . Used . | . . . . Hacking Detections 1 | . 1 . . Full Trace Events . | . . . . Feedback Events . | . . . . Feedback Blocked . | . . . . Robot Schematics Acquired . | . . . . Robots Built . | . . . . Authchips . | . . . . Time . | . . . . Total Robot Build Rating . | . . . . Part Schematics Acquired . | . . . . Parts Built . | . . . . Authchips . | . . . . Time . | . . . . Total Part Build Rating . | . . . . Parts Repaired . | . . . . Time . | . . . . Parts Recycled . | . . . . Recycled Matter . | . . . . Retrieved Matter . | . . . . Retrieved Components . | . . . . Parts Scanalyzed . | . . . . Part Schematics Acquired . | . . . . Parts Damaged . | . . . . Bothacking | -11 -10 -10 -9 ------------ Run | Yrd Mat Sub Scr Used RIF Installer . | . . . . Robots Hacked . | . . . . Non-combat . | . . . . Combat . | . . . . Robot Hacks Applied . | . . . . Relay Couplers Released . | . . . . Fabnet Peak Effective % . | . . . . Robots Rewired . | . . . . Allies Hacked . | . . . . Hacks Repelled . | . . . . Allies | -11 -10 -10 -9 -------- Run | Yrd Mat Sub Scr Total Allies . | . . . . Largest Group . | . . . . Highest-Rated Group . | . . . . Highest-Rated Ally . | . . . . Total Orders . | . . . . Ally Attacks . | . . . . Total Damage . | . . . . Kills . | . . . . Allies Corrupted . | . . . . Allies Melted . | . . . . Intel | -11 -10 -10 -9 ------- Run | Yrd Mat Sub Scr Active Infowar (turns) 509 | . 117 146 246 Sensors 246 | . . . 246 Seismic 198 | . 52 146 . ECM 65 | . 65 . . Robot Analysis Total . | . . . . Derelict Logs Recovered 2 | . . . 2 Drone Launches . | . . . . Drone Recoveries . | . . . . Exploration | -11 -10 -10 -9 ------------- Run | Yrd Mat Sub Scr Turns Passed 2038 | 45 164 267 1562 Spaces Moved 1815 | 40 152 217 1406 Core 5 | 4 . . 1 Treads . | . . . . Legs . | . . . . Wheels 1810 | 36 152 217 1405 Hover . | . . . . Flight . | . . . . Fastest Speed 50 | 50 90 90 95 Average Speed 105 | 86 90 92 109 Slowest Speed 400 | 90 90 95 400 Overloaded Moves . | . . . . Propulsion Burnouts . | . . . . Robots Hopped . | . . . . Potential Cave-ins . | . . . . Cave-ins Triggered . | . . . . Exploration Rate (%) 32 | 3 29 18 81 Regions Visited 3 Branch Regions 2 Pre-discovered Areas . | . . . . Known Exits Taken . | . . . . Unknown Exits Taken 3 | 1 1 1 . Scrap Searched 2 | . . . 2 Spaces Dug . | . . . . Terrain Destroyed . | . . . . Melee . | . . . . Projectile . | . . . . AOE . | . . . . Terrain Rammed . | . . . . Walls Destroyed . | . . . . Machines Disabled . | . . . . Actions | -11 -10 -10 -9 --------- Run | Yrd Mat Sub Scr Total 1921 | 50 179 261 1431 Wait 38 | . 20 16 2 Move 1812 | 39 151 216 1406 Hop . | . . . . Pick Up 23 | 6 2 8 7 Fast Attach 3 | . . . 3 Attach 12 | 5 3 1 3 Detach 3 | . 1 1 1 Swap 4 | . . 4 . Drop 13 | . . 4 9 Fire 11 | . . 11 . Melee . | . . . . Ram 2 | . 2 . . Kick . | . . . . Crush . | . . . . Escape Stasis . | . . . . Rewire . | . . . . Trap . | . . . . Miscellaneous . | . . . . Route ------- -11/Scrapyard -10/Materials (discovered 3 exits: [*Mat] / [*Min] / [*Sub]) -10/Subcaves -9/Scraptown (discovered 2 exits: [*Fac x2]) History --------- Turn | Location | Event 27 | -11/Scrapyard | Discovered new exit (range 16) 46 | -11/Scrapyard | Entered Materials 114 | -10/Materials | Discovered new exit (range 15) 148 | -10/Materials | Discovered new exit (range 14) 199 | -10/Materials | Discovered new exit (range 5) 210 | -10/Materials | Entered Subcaves 211 | -10/Subcaves | Approached by a straggling Scientist 302 | -10/Subcaves | Build established: Mutant 330 | -10/Subcaves | Ambushed by swarm of Subdwellers 331 | -10/Subcaves | Ambushed by Subdwellers from Twisted Machinery 373 | -10/Subcaves | Ambushed by Subdwellers from Twisted Machinery 468 | -10/Subcaves | Scientist uncovered a shortcut to Scraptown 477 | -10/Subcaves | Entered Scraptown 660 | -9/Scraptown | Visited UFD Registry 670 | -9/Scraptown | Build established: Scavenger-Mutant 675 | -9/Scraptown | Visited Comm Corps 725 | -9/Scraptown | Visited Spacefarers 764 | -9/Scraptown | Scanned Subdweller tech in exchange for log data 767 | -9/Scraptown | Learned location of 2 exits from Research 780 | -9/Scraptown | Discovered new exit (range 13) 1156 | -9/Scraptown | Visited Awakened 1261 | -9/Scraptown | Heard Great Nut preacher, LISTEN AND RECITE! 1380 | -9/Scraptown | Visited SPCMW 1454 | -9/Scraptown | Visited Cyclists 1536 | -9/Scraptown | Registered with UFD as "Kinetiguard" 1605 | -9/Scraptown | Visited Scrapoid Pod Storage 1630 | -9/Scraptown | Visited Botcube Research 1676 | -9/Scraptown | Discovered new exit (range 3) 1779 | -9/Scraptown | Visited Infowarlord's Domain 1789 | -9/Scraptown | Found Exp. Sensor Array 1829 | -9/Scraptown | Visited Junk Cannon Lab 1850 | -9/Scraptown | Found Prototype Special Weapon 1850 | -9/Scraptown | Identified Junk Cannon 2029 | -9/Scraptown | Attacked by Scraptown defenders 2039 | -9/Scraptown | Self-destructed Last Messages --------------- great, but for longer expeditions we could use more coverage and integrity. Scrap Shields are already pretty good, but imagine an alternative version not limited to compatible fragments for repairs! Anyway, if you do find one, let me know. 01910_ L=I 7H UR/YWUUTF=2UKQC1 01932_ System corrupted: Energy discharge (-37). 01932_ Multiple signs read "I'm always busy, go away." 01952_ FG-IW8(p) is having trouble making adjustments to the mainframe. 02029_ System corrupted: FCS attempts to trigger Sub. Laser. 02029_ System corrupted: Sub. Laser misfires. 02029_ ANNOUNCEMENT: Intruder alert! Defend Scraptown! 02031_ Machine disabled. 02035_ Wheel destroyed. 02037_ Exp. Sensor Array destroyed. Map ----- +----------------------------------------------------+ | ?####################### ###########??????????? | | ???????????????????????## ##????????????????????? | | ????????????????????????# #?????????????????????? | | ????????????????????????# #?????????????????????? | | ????????????????????????# #?????????????????????? | | ????????????????????????# #?????????????????????? | | ????????????????????????# #?????????????????????? | | ????????????????????????# #?????????????????????? | | ???##########?###"####### #?????????????????????? | | ???#""""""" #?"" """"# #?????????????????????? | | ???#" ! "##"" """# #???#?????????????????? | | ???#" "## " &""# #??"""????????????????? | | ???#" "##" """# c#? ?????????????????? | | ???#" "##" # #? ??????????????????? | | ???#### ########### ##### #? #??????????????????? | | ####### ########### ##### ##p##?????????????????? | | """"""" """"""""""" """"" c""p"#?????????????????? | | "#?????????????????? | | j "#???"??"??????????? | | "#?? " "?????????? | | g "## ""????????? | | ""????????? | | """""""""""""""""""""""" "## """""??????????? | | """"""""""""""""""""""""" c"#??""?????????????? | | ##### ################"" "#?????????????????? | | ??? ?????????????#""@ "#?????????????????? | | ?? ????????????#"" "###########???????? | | ? "" "" ???????????#"" "## #???????? | | ? "" "" ?????????###""E "## #???????? | | " ? ???####### # E "## ! #???????? | | "" #???????? | | "" ? "## #???????? | | " ?? ????######### #" "###########???????? | | ??"?????????????????###"" "#?????????????????? | | ??????????????????????#"" "##############????? | | ??????????????????????#"" "## """"""""#????? | | ??????????????????????#"" "## " """"""#????? | | ???????????????????####"" c "## " ""#????? | | "????????????????"""""""" j"## ""#????? | | "?????????????""""""""""" [ ""#????? | | ???????????? "## """"""""#????? | | ??????????? "## #########????? | | ?????????? "## #????????????? | | ????????? ## #????????????? | | ????????? # "????????????? | | """""?????????""""""" """""" ## #????????????? | | ###??????????????#### ###### ######????????????? | | ??????????????????? ?????# #?????????????????? | | ??????????????????# ??????# #?????????????????? | | ??????????????????"????????# #?????????????????? | +----------------------------------------------------+ Best States ------------- Heat Dissipation 39 Coolant Potential 50 Energy Generation 18 Energy Capacity 250 Matter Stores 300 Matter Capacity 300 Sight Range 16 Robot Scan Range 20 Terrain Scan Density 10 ECM Strength 1 Evasion (%) 42 Item Schematics ----------------- None Robot Schematics ------------------ None Fabricated ------------ Nothing Repaired ---------- Nothing Alien Tech Used ----------------- None Achievements -------------- None Challenges ------------ None Game ------ Seed DerelictArcLoader Manual? 0 Play Time 00:24:10 Cumulative 30.9 hours Start 2025.10.15 @ 23:13:44 End 2025.10.15 @ 23:36:17 Sessions 1 Manual Loads 0 Difficulty Rogue Special Mode None Game No. 87 Rogue 81 Adventurer 6 Explorer 0 Win Type - Total 0 Types 0/0/0/0/0/0/0/0/0/0 Lore% 14 Gallery% 23 Achievement% 20 Wizard Run 0 Options --------- Layout 1 ASCII 0 Keyboard 0 Movement Numpad Keybinds 0 Fullscreen 1 Font 24/Smallcaps Map View 50x40 Zoom Use 0% Tactical HUD 1 Map Filters NONE Filters NONE Steam 1 RUN: 0dc7c97d-7202-48e3-9350-5379677288b6